bitfinex/quotes_SOLUSD_20240814
["timestamp","ask_amount","ask_price","bid_price","bid_amount"]
[1723638594533,6.6933,149.41,149.27,20.12549]
[1723638594724,6.6933,149.41,149.27,65.25098]
[1723638594916,20.8445855,149.43,149.27,65.25098]
[1723638595123,6.6926,149.42,149.27,65.25098]
[1723638595319,20.8445855,149.43,149.27,20.0]
[1723638595519,20.8445855,149.43,149.19,20.0]
[1723638595722,20.8445855,149.43,149.2,7.96195833]
[1723638596034,0.8445855,149.43,149.25,20.0]
[1723638596213,0.8445855,149.43,149.26,15.64530146]
[1723638596413,0.8445855,149.43,149.28,0.12549]
[1723638596623,0.8445855,149.43,149.3,0.12549]
[1723638596828,0.8445855,149.43,149.3,73.32591261]
[1723638597014,0.8445855,149.43,149.32,0.12549]
[1723638597203,2.0,149.54,149.34,0.12549]
[1723638597407,2.0,149.54,149.36,0.12549]
[1723638597603,2.0,149.54,149.37,8.44768038]
[1723638597806,2.0,149.54,149.39,0.12549]
[1723638598010,2.0,149.54,149.41,0.12549]
[1723638598305,2.0,149.54,149.43,0.12549]
[1723638598629,2.0,149.54,149.43,45.97774095]
[1723638598803,2.0,149.54,149.43,87.98177873]
[1723638599004,2.0,149.54,149.45,0.12549]
[1723638599247,2.0,149.54,149.46,15.40430255]
[1723638599537,2.0,149.54,149.47,45.50196]
[1723638599711,2.0,149.54,149.49,0.12549]
[1723638600021,2.0,149.54,149.48,0.12549]
[1723638600226,2.0,149.54,149.48,20.12549]
[1723638600533,2.0,149.54,149.49,1.71361171]
[1723638600717,0.8445855,149.58,149.5,0.12549]
[1723638601051,5.0,149.62,149.55,0.12549]
[1723638601233,5.0,149.62,149.6,0.12549]
[1723638601420,22.60391224,149.84,149.61,17.1398665]
[1723638601619,22.60391224,149.84,149.62,5.12549]
[1723638601827,22.60391224,149.84,149.66,0.25098]
[1723638602134,0.3445855,149.73,149.67,0.37647]
[1723638602337,0.3445855,149.73,149.66,0.12549]
[1723638602338,0.3445855,149.73,149.63,45.0]
[1723638602515,0.3445855,149.73,149.45,3.70231128]
[1723638602516,0.3445855,149.73,149.45,20.0]
[1723638602717,3.29071078,149.72,149.47,20.0]
[1723638602919,11.40041735,149.72,149.47,20.0]
[1723638603136,6.6925,149.42,149.41,4.95141777]
[1723638603341,7.73283098,149.48,149.11,10.1451208]
[1723638603545,7.73283098,149.48,149.16,20.0]
[1723638603546,6.25168302,149.48,149.16,20.0]
[1723638603839,6.6931,149.41,149.19,9.55419838]
[1723638604017,6.6953,149.36,149.13,20.0]
[1723638604218,6.6969,149.33,149.12,1.1666323]
[1723638604412,1.54356197,149.32,149.15,20.0]
[1723638604614,20.0,149.39,149.1,20.0]
[1723638604848,0.12549,149.33,149.11,11.83972897]
[1723638605050,1.54356197,149.32,149.12,30.99061434]
[1723638605358,20.0,149.47,149.21,10.87530725]
[1723638605566,20.0,149.49,149.22,28.95769401]
[1723638605743,16.727,149.56,149.48,9.38564625]
[1723638606066,1.54356197,149.55,149.46,9.36240894]
[1723638606235,20.0,149.63,149.28,20.0]
[1723638606435,20.0,149.63,149.23,54.57867403]
[1723638606436,26.799067,149.69,149.45,8.19684299]
[1723638606633,20.0,149.63,149.46,28.19016131]
[1723638606829,20.3445855,149.73,149.47,53.19684299]
[1723638607035,20.3445855,149.73,149.48,20.0]
[1723638607259,20.0,149.69,149.48,20.0]
[1723638607436,26.6822,149.65,149.48,28.19684299]
[1723638607636,6.6805,149.69,149.49,0.25098]
[1723638607836,20.0,149.66,149.4,20.0]
[1723638608161,20.0,149.57,149.29,20.0]
[1723638608343,20.0,149.61,149.29,20.0]
[1723638608542,1.54356197,149.57,149.31,20.0]
[1723638608744,6.6863,149.56,149.31,20.0]
[1723638608933,21.54356197,149.57,149.29,20.0]
[1723638609255,20.0,149.65,149.37,20.0]
[1723638609435,20.0,149.6,149.33,20.0]
[1723638609639,1.54356197,149.64,149.37,20.0]
[1723638609858,20.0,149.65,149.37,8.81446232]
[1723638610065,20.0,149.58,149.3,20.0]
[1723638610233,6.6866,149.56,149.28,20.0]
[1723638610432,20.0,149.64,149.14,19.28373199]
[1723638610433,20.0,149.51,149.3,0.5]
[1723638610664,1.54356197,149.55,149.3,0.5]
[1723638610867,20.0,149.53,149.3,0.5]
[1723638611069,20.0,149.48,149.3,0.5]
[1723638611276,1.54356197,149.53,149.3,0.5]
[1723638611277,0.37647,149.47,149.3,0.5]
[1723638611561,20.0,149.51,149.3,0.5]
[1723638611864,20.0,149.58,149.3,20.5]
[1723638612071,20.0,149.47,149.3,0.5]
[1723638612381,18.25886197,149.57,149.3,0.5]
[1723638612382,26.6888,149.51,149.3,0.0848508]
[1723638612565,18.25886197,149.57,149.3,0.0848508]
[1723638612566,20.0,149.5,149.3,0.0848508]
[1723638612742,20.12549,149.49,149.3,0.0848508]
[1723638613148,20.0,149.39,149.3,0.0848508]
[1723638613383,20.12549,149.38,149.3,0.0848508]
[1723638613579,20.0,149.45,149.3,0.0848508]
[1723638613747,0.12549,149.41,149.3,0.0848508]
[1723638613953,0.12549,149.43,149.3,0.0848508]
[1723638614150,20.0,149.46,149.3,0.0848508]
[1723638614349,6.6893,149.5,149.3,0.0848508]
[1723638614549,26.6921,149.43,149.3,0.0848508]
[1723638614887,20.0,149.46,149.3,0.0848508]
[1723638615090,26.6894,149.49,149.3,0.0848508]
[1723638615268,20.0,149.56,149.3,0.0848508]
[1723638615471,20.0,149.51,149.3,0.0848508]
[1723638615677,20.0,149.46,149.3,0.0848508]
[1723638615988,20.0,149.52,149.3,0.0848508]
[1723638616196,20.0,149.61,149.33,20.0]
[1723638616370,20.0,149.61,149.34,20.0]
[1723638616702,20.0,149.63,149.39,20.0]
[1723638616859,20.0,149.67,149.41,0.12549]
[1723638617164,20.0,149.66,149.41,45.50196]
[1723638617371,6.6804,149.7,149.43,0.12549]
[1723638617559,16.6896,149.8,149.43,45.50196]
[1723638617560,6.6813,149.67,149.43,45.50196]
[1723638617893,20.0,149.69,149.45,0.12549]
[1723638618071,20.0,149.7,149.45,0.50196]
[1723638618387,20.0,149.74,149.45,9.77279455]
[1723638618692,20.0,149.7,149.46,0.25098]
[1723638618988,20.0,149.72,149.46,20.12549]
[1723638619174,6.678,149.75,149.5,0.12549]
[1723638619373,26.6768,149.78,149.52,0.12549]
[1723638619690,20.0,149.78,149.54,0.12549]
[1723638619860,26.6794,149.72,149.5,0.12549]
[1723638620066,20.0,149.58,149.37,109.66547369]
[1723638620362,33.4123,149.65,149.33,20.0]
[1723638620363,6.6852,149.59,149.33,20.0]
[1723638620578,6.6854,149.58,149.32,20.0]
[1723638620780,20.0,149.59,149.31,20.0]
[1723638620984,6.6832,149.63,149.38,20.0]
[1723638621188,20.0,149.72,149.46,20.0]
[1723638621389,20.0,149.7,149.42,20.0]
[1723638621695,20.0,149.8,149.38,7.81512927]
[1723638621986,6.6778,149.75,149.5,20.0]
[1723638622187,6.6778,149.75,149.42,20.0]
[1723638622188,1.16508755,149.8,149.56,0.12549]
[1723638622486,20.0,149.79,149.58,0.12549]
[1723638622671,6.6767,149.78,149.58,0.12549]
[1723638622873,6.6778,149.75,149.58,0.12549]
[1723638623067,1.16469713,149.8,149.58,0.12549]
[1723638623270,1.0,149.81,149.61,0.12549]
[1723638623489,1.0,149.81,149.64,20.0]
[1723638623792,1.0,149.81,149.56,65.0]
[1723638623793,20.0,149.79,149.56,20.0]
[1723638624097,6.6772,149.77,149.57,0.12549]
[1723638624397,6.6777,149.76,149.57,0.12549]
[1723638624691,6.6777,149.76,149.48,109.58477258]
[1723638624692,1.0,149.81,149.53,20.0]
[1723638624897,1.0,149.81,149.61,20.0]
[1723638625193,6.6767,149.78,149.57,20.0]
[1723638625486,1.0,149.81,149.54,20.0]
[1723638625487,1.0,149.81,149.59,20.0]
[1723638625800,1.0,149.81,149.64,0.12549]
[1723638625965,6.6766,149.78,149.64,45.37647]
[1723638626170,1.0,149.81,149.6,65.0]
[1723638626489,16.6897,149.8,149.54,20.0]
[1723638626690,16.6934,149.76,149.53,20.0]
[1723638626884,16.6934,149.76,149.51,20.0]
[1723638627087,16.6934,149.76,149.48,20.0]
[1723638627263,16.6934,149.76,149.42,20.0]
[1723638627264,1.0,149.81,149.64,20.0]
[1723638627583,1.0,149.81,149.59,31.98878364]
[1723638627791,21.0,149.81,149.57,20.0]
[1723638628088,21.0,149.81,149.65,20.0]
[1723638628089,1.0,149.81,149.65,20.0]
[1723638628285,1.0,149.81,149.62,40.0]
[1723638628500,1.0,149.81,149.65,20.0]
[1723638628672,1.0,149.81,149.68,20.0]
[1723638628864,1.0,149.81,149.69,65.0]
[1723638629171,1.0,149.81,149.6,20.0]
[1723638629379,1.0,149.81,149.56,20.0]
[1723638629576,6.6802,149.7,149.56,20.0]
[1723638629781,1.0,149.81,149.59,20.0]
[1723638629997,1.0,149.81,149.56,40.0]
[1723638630173,6.6767,149.78,149.57,20.0]
[1723638630497,1.0,149.81,149.59,20.0]
[1723638630675,1.0,149.81,149.65,20.0]
[1723638630876,6.6761,149.79,149.62,20.0]
[1723638631078,1.0,149.81,149.63,0.12549]
[1723638631281,1.0,149.81,149.67,20.0]
[1723638631595,1.0,149.81,149.68,0.12549]
[1723638631799,1.0,149.81,149.71,0.12549]
[1723638632094,1.0,149.81,149.65,20.0]
[1723638632291,1.0,149.81,149.69,28.86100703]
[1723638632483,1.0,149.81,149.7,65.12549]
[1723638632677,1.0,149.81,149.71,28.43200703]
[1723638633394,1.0,149.81,149.72,0.37647]
[1723638633567,1.0,149.81,149.72,20.0]
[1723638633896,1.0,149.81,149.68,22.674349]
[1723638634197,1.0,149.81,149.69,20.0]
[1723638634696,1.0,149.81,149.68,2.674349]
[1723638634997,1.0,149.81,149.64,25.15275047]
[1723638635584,1.0,149.81,149.6,20.0]
[1723638635899,1.0,149.81,149.56,20.0]
[1723638635900,0.25098,149.8,149.57,1.3353202]
[1723638636396,0.12549,149.79,149.56,1.33598975]
[1723638636712,0.12549,149.79,149.55,40.0]
[1723638636996,1.0,149.81,149.58,20.0]
[1723638637176,1.0,149.81,149.54,20.0]
[1723638637177,0.12549,149.8,149.54,20.0]
[1723638637383,45.12549,149.8,149.56,2.67565]
[1723638637698,6.6787,149.73,149.56,3.34212994]
[1723638637882,45.12549,149.72,149.56,2.67565]
[1723638638078,45.12549,149.72,149.46,20.0]
[1723638638286,0.12549,149.7,149.45,20.0]
[1723638638467,20.25098,149.7,149.45,20.0]
[1723638638673,6.6828,149.64,149.45,20.0]
[1723638638998,20.0,149.57,149.31,109.7095426]
[1723638639204,20.0,149.54,149.31,109.7095426]
[1723638639404,6.6897,149.49,149.25,20.9438899]
[1723638639697,0.12549,149.53,149.26,21.3383194]
[1723638640006,6.81179,149.56,149.3,20.0]
[1723638640306,6.81179,149.56,149.25,0.9438899]
[1723638640307,45.12549,149.55,149.31,20.0]
[1723638640473,0.25098,149.54,149.28,20.25098]
[1723638640674,0.12549,149.53,149.28,20.0]
[1723638640879,20.0,149.7,149.38,26.723]
[1723638641171,20.0,149.64,149.41,9.07794287]
[1723638641479,20.0,149.57,149.39,9.07794287]
[1723638641681,20.0,149.54,149.29,1.33833098]
[1723638641887,20.0,149.57,149.27,20.0]
[1723638642083,20.0,149.53,149.27,20.0]
[1723638642400,33.4041,149.69,149.26,20.0]
[1723638642401,20.0,149.55,149.26,20.0]
[1723638642571,20.12549,149.52,149.25,20.9438899]
[1723638642782,0.12549,149.47,149.25,0.9438899]
[1723638642989,0.25098,149.51,149.27,20.0]
[1723638643192,20.0,149.62,149.33,20.0]
[1723638643502,6.6835,149.63,149.38,20.0]
[1723638643668,20.0,149.6,149.32,20.0]
[1723638643875,20.0,149.6,149.25,110.69753684]
[1723638643876,20.0,149.58,149.31,20.0]
[1723638644176,20.0,149.56,149.29,20.0]
[1723638644383,6.6897,149.49,149.25,20.9438899]
[1723638644696,20.0,149.49,149.25,0.9438899]
[1723638645010,6.6912,149.45,149.25,0.9438899]
[1723638645295,0.12549,149.44,149.25,0.9438899]
[1723638645491,0.12549,149.43,149.25,0.9438899]
[1723638645698,0.50196,149.43,149.25,0.9438899]
[1723638646084,0.37647,149.43,149.25,0.9438899]
[1723638646408,0.12549,149.42,149.25,0.9438899]
[1723638646590,7.19466,149.42,149.25,0.9438899]
[1723638646789,0.12549,149.37,149.25,0.9438899]
[1723638646998,0.37647,149.37,149.25,0.9438899]
[1723638647207,0.12549,149.36,149.25,0.9438899]
[1723638647395,0.12549,149.34,149.25,0.9438899]
[1723638647711,6.6996,149.27,149.25,0.9438899]
[1723638647930,20.25098,149.34,149.0,109.93779735]
[1723638647931,0.37647,149.26,149.01,21.1674189]
[1723638648076,0.37647,149.26,149.02,2.685347]
[1723638648278,0.12549,149.19,149.02,2.685347]
[1723638648713,0.25098,149.19,149.02,2.685347]
[1723638648885,6.7053,149.14,149.02,2.685347]
[1723638649077,0.12549,149.13,149.02,2.685347]
[1723638649278,0.12549,149.07,149.02,2.685347]
[1723638649475,0.12549,149.06,149.02,2.685347]
[1723638649678,0.25098,149.06,149.02,2.685347]
[1723638649904,0.12549,149.06,149.02,2.685347]
[1723638650217,20.12549,149.05,149.02,2.685347]
[1723638650501,0.12549,148.94,148.92,0.9438899]
[1723638650709,0.25098,148.94,148.92,0.9438899]
[1723638650879,0.37647,148.94,148.92,0.9438899]
[1723638651080,20.0,148.88,148.75,2.11410097]
[1723638651287,0.12549,148.81,148.75,0.9438899]
[1723638651492,20.0,148.8,148.75,0.9438899]
[1723638651683,0.25098,148.81,148.53,110.28567835]
[1723638651684,0.12549,148.76,148.53,110.28567835]
[1723638651883,0.12549,148.76,148.45,20.0]
[1723638651884,0.12549,148.76,148.73,0.0582458]
[1723638652091,20.37647,148.76,148.73,0.0582458]
[1723638652282,0.03706068,148.79,148.73,0.0582458]
[1723638652610,6.7251,148.7,148.54,1.0860472]
[1723638652788,0.12549,148.69,148.57,45.59]
[1723638652988,6.7298,148.6,148.54,1.0860472]
[1723638653300,20.0,148.68,148.54,1.0860472]
[1723638653624,20.0,148.59,148.54,1.0860472]
[1723638653815,6.729,148.62,148.54,7.8178472]
[1723638653983,20.0,148.57,148.54,0.7095772]
[1723638654183,6.7334,148.52,148.34,1.0860472]
[1723638654383,20.0,148.52,148.34,1.0860472]
[1723638654604,0.12549,148.5,148.34,1.0860472]
[1723638654919,20.0,148.47,148.34,1.0860472]
[1723638655083,45.59,148.35,148.18,26.988723]
[1723638655280,45.59,148.45,148.1,110.6058866]
[1723638655281,6.7416,148.34,148.1,20.0]
[1723638655483,6.7416,148.34,148.09,20.0]
[1723638655484,6.7411,148.35,148.12,20.0]
[1723638655715,20.0,148.49,148.29,20.0]
[1723638656201,20.0,148.57,148.19,20.0]
[1723638656385,20.0,148.56,148.42,45.59]
[1723638656583,45.59,148.61,148.29,20.0]
[1723638656784,45.59,148.61,148.31,20.0]
[1723638656785,20.0,148.57,148.31,20.0]
[1723638657086,20.0,148.49,148.24,7.94094843]
[1723638657277,20.0,148.64,148.3,20.0]
[1723638657485,20.0,148.64,148.26,20.0]
[1723638657809,20.0,148.5,148.17,20.0]
[1723638658108,9.30707896,148.65,148.17,20.0]
[1723638658109,20.0,148.37,148.17,20.0]
[1723638658316,20.0,148.37,148.15,1.0860472]
[1723638658317,20.0,148.35,148.15,1.0860472]
[1723638658623,20.0,148.35,148.2,45.59]
[1723638658922,20.0,148.38,148.2,45.59]
[1723638659112,0.12549,148.37,148.31,45.59]
[1723638659283,0.12549,148.37,148.15,1.0860472]
[1723638659284,20.0,148.46,148.33,45.59]
[1723638659611,20.0,148.5,148.33,44.3167]
[1723638659783,20.0,148.5,148.32,45.59]
[1723638660107,45.59,148.57,148.25,20.0]
[1723638660314,20.0,148.56,148.43,45.59]
[1723638660618,20.0,148.65,148.49,45.59]
[1723638660787,20.0,148.66,148.49,45.59]
[1723638660990,20.0,148.65,148.46,45.59]
[1723638661209,20.0,148.66,148.48,0.12549]
[1723638661519,20.0,148.66,148.4,45.59]
[1723638661520,45.59,148.55,148.35,45.59]
[1723638661815,20.0,148.61,148.44,45.59]
[1723638662016,20.0,148.6,148.47,45.59]
[1723638662181,20.0,148.55,148.28,20.0]
[1723638662385,20.0,148.55,147.43,8.87146184]
[1723638662386,20.0,148.58,148.32,20.0]
[1723638662686,20.0,148.6,148.32,20.0]
[1723638662879,20.0,148.6,148.33,20.0]
[1723638663108,20.0,148.6,148.34,40.0]
[1723638663295,45.59,148.57,148.38,45.59]
[1723638663491,45.59,148.61,148.43,45.59]
[1723638663680,45.59,148.64,148.46,0.12549]
[1723638663881,26.980005,148.65,148.48,45.59]
[1723638664113,20.0,148.66,148.49,20.0]
[1723638664407,45.59,148.68,148.52,45.59]
[1723638664408,72.555749,148.68,148.52,45.59]
[1723638664610,26.965749,148.68,148.56,0.12549]
[1723638664783,20.0,148.73,148.56,20.0]
[1723638665007,20.0,148.71,148.56,45.59]
[1723638665202,45.59,148.71,148.52,0.12549]
[1723638665426,20.0,148.74,148.52,0.12549]
[1723638665609,20.0,148.75,148.52,0.25098]
[1723638665937,45.59,148.68,148.51,0.25098]
[1723638666241,65.59,148.75,148.53,0.12549]
[1723638666634,20.0,148.72,148.53,0.12549]
[1723638666830,45.59,148.72,148.53,45.71549]
[1723638667032,26.953495,148.74,148.57,0.12549]
[1723638667218,45.59,148.72,148.57,20.25098]
[1723638667415,26.953495,148.74,148.57,65.84098]
[1723638667620,26.953495,148.74,148.61,0.12549]
[1723638667943,26.953495,148.74,148.68,0.12549]
[1723638668241,26.953495,148.74,148.61,65.12549]
[1723638668242,26.953495,148.74,148.62,20.12549]
[1723638668532,46.953495,148.74,148.51,45.59]
[1723638668743,45.59,148.66,148.47,45.59]
[1723638668939,45.59,148.66,148.47,65.59]
[1723638669137,45.59,148.69,148.49,20.0]
[1723638669340,26.953495,148.74,148.56,45.59]
[1723638669718,26.953495,148.74,148.62,45.59]
[1723638669917,1.0860472,148.82,148.67,45.59]
[1723638670131,1.0860472,148.82,148.7,45.59]
[1723638670320,45.59,148.78,148.61,45.59]
[1723638670522,1.0860472,148.82,148.68,0.12549]
[1723638670726,1.0860472,148.82,148.68,40.50196]
[1723638670914,1.0860472,148.82,148.7,20.12549]
[1723638671127,1.0860472,148.82,148.8,0.12549]
[1723638671310,1.0860472,148.82,148.71,66.59476451]
[1723638671311,1.0860472,148.82,148.72,0.12549]
[1723638671711,1.0860472,148.82,148.72,1.46894316]
[1723638671912,1.0860472,148.82,148.72,0.12549]
[1723638672106,1.0860472,148.82,148.68,0.12549]
[1723638672414,1.0860472,148.82,148.74,0.12549]
[1723638672720,1.0860472,148.82,148.74,20.37647]
[1723638672920,1.0860472,148.82,148.67,45.59]
[1723638673130,1.0860472,148.82,148.68,20.0]
[1723638673319,1.0860472,148.82,148.7,45.59]
[1723638673715,0.12549,148.81,148.64,45.59]
[1723638673927,0.12549,148.81,148.47,33.2536299]
[1723638673928,45.96647,148.81,148.56,20.0]
[1723638674137,45.59,148.75,148.58,45.59]
[1723638674337,20.25098,148.74,148.6,45.59]
[1723638674641,0.12549,148.81,148.69,45.59]
[1723638674811,0.12549,148.81,148.56,20.0]
[1723638675007,20.25098,148.81,148.63,45.59]
[1723638675239,20.12549,148.81,148.63,45.59]
[1723638675539,0.12549,148.8,148.57,20.0]
[1723638675739,20.0,148.81,148.65,45.59]
[1723638675945,1.0860472,148.82,148.71,45.59]
[1723638676108,1.0860472,148.82,148.74,45.59]
[1723638676309,1.0860472,148.82,148.71,45.59]
[1723638676639,1.0860472,148.82,148.68,45.59]
[1723638676946,1.0860472,148.82,148.7,0.12549]
[1723638677246,1.0860472,148.82,148.54,65.59]
[1723638677247,45.59,148.75,148.58,45.59]
[1723638677733,45.59,148.69,148.51,45.59]
[1723638677940,45.59,148.66,148.47,65.59]
[1723638678122,20.37647,148.65,148.5,45.59]
[1723638678458,0.12549,148.63,148.47,45.59]
[1723638678614,20.0,148.63,148.47,45.59]
[1723638678956,20.0,148.63,148.4,45.59]
[1723638678957,45.59,148.61,148.44,45.59]
[1723638679130,45.59,148.58,148.4,45.59]
[1723638679447,45.59,148.58,148.26,45.59]
[1723638679448,45.37647,148.57,148.37,1.34556878]
[1723638679619,20.12549,148.56,148.4,45.59]
[1723638679943,45.0,148.55,148.4,45.59]
[1723638680249,20.0,148.56,148.46,45.59]
[1723638680930,0.12549,148.54,148.4,45.59]
[1723638681247,45.59,148.5,148.38,79.71195407]
[1723638681430,65.37647,148.49,148.38,79.71195407]
[1723638681627,0.12549,148.55,148.42,45.59]
[1723638681838,45.12549,148.54,148.42,45.59]
[1723638682021,45.0,148.54,148.45,45.59]
[1723638682222,20.0,148.62,148.45,45.59]
[1723638682444,45.59,148.58,148.42,45.59]
[1723638682648,45.59,148.58,148.39,45.59]
[1723638682951,65.59,148.61,148.45,45.59]
[1723638683247,79.2193,148.68,148.48,45.59]
[1723638683248,20.0,148.65,148.48,45.59]
[1723638683444,26.7265,148.67,148.51,45.59]
[1723638683616,45.59,148.68,148.43,10.17034732]
[1723638683815,45.59,148.57,148.42,45.59]
[1723638684046,65.59,148.61,148.42,45.59]
[1723638684238,45.59,148.61,148.45,45.59]
[1723638684437,20.0,148.67,148.48,45.59]
[1723638684641,6.7261,148.68,148.51,45.59]
[1723638684858,20.0,148.67,148.47,45.59]
[1723638685046,6.7273,148.65,148.47,45.59]
[1723638685347,6.7273,148.65,148.43,20.0]
[1723638685348,6.7308,148.57,148.4,45.59]
[1723638685527,45.59,148.58,148.4,45.59]
[1723638686051,20.0,148.57,148.43,45.59]
[1723638686256,0.12549,148.56,148.46,45.59]
[1723638686420,0.12549,148.52,148.32,2.66281733]
[1723638686617,20.12549,148.51,148.29,26.971915]
[1723638686845,20.37647,148.52,148.29,26.971915]
[1723638686846,20.0,148.5,148.37,45.59]
[1723638687027,45.59,148.58,148.4,45.59]
[1723638687219,20.25098,148.57,148.4,45.59]
[1723638687428,6.7288,148.62,148.46,45.59]
[1723638687624,45.59,148.66,148.49,45.59]
[1723638688062,6.7286,148.62,148.49,45.59]
[1723638688224,65.59,148.63,148.47,0.12549]
[1723638688429,45.59,148.6,148.44,0.12549]
[1723638688651,45.59,148.6,148.44,0.25098]
[1723638688948,20.0,148.55,148.4,45.59]
[1723638689151,45.59,148.57,148.4,45.59]
[1723638689152,65.59,148.57,148.4,45.59]
[1723638689356,20.0,148.54,148.4,45.59]
[1723638689641,0.12549,148.58,148.46,45.59]
[1723638689848,26.977301,148.62,148.49,45.59]
[1723638690061,65.59,148.6,148.43,45.59]
[1723638690233,6.7308,148.58,148.4,45.59]
[1723638690437,20.0,148.55,148.4,45.59]
[1723638690667,20.0,148.53,148.37,45.59]
[1723638690956,65.59,148.51,148.33,45.59]
[1723638691182,0.12549,148.47,148.33,45.59]
[1723638691369,0.12549,148.45,148.32,2.71243736]
[1723638691542,0.37647,148.46,148.33,45.59]
[1723638691864,0.12549,148.44,148.33,45.59]
[1723638692046,0.12549,148.44,148.27,10.49433621]
[1723638692047,0.25098,148.44,148.3,45.59]
[1723638692247,0.25098,148.43,148.3,45.59]
[1723638692567,0.25098,148.43,148.33,45.59]
[1723638692568,0.12549,148.42,148.33,45.59]
[1723638692953,0.25098,148.43,148.33,45.59]
[1723638693132,0.12549,148.42,148.3,45.59]
[1723638693462,0.25098,148.42,148.29,45.59]
[1723638693761,0.25098,148.42,148.27,2.7132464]
[1723638693762,45.59,148.32,148.27,2.7132464]
[1723638693939,45.59,148.32,148.16,45.59]
[1723638693940,20.0,148.31,148.16,45.59]
[1723638694137,0.37647,148.3,148.16,45.59]
[1723638694331,45.59,148.29,148.16,2.74431219]
[1723638694667,0.25098,148.3,148.16,45.59]
[1723638694668,20.0,148.28,148.16,45.59]
[1723638694849,20.0,148.28,148.15,3.81065885]
[1723638694850,20.0,148.28,148.19,45.59]
[1723638695054,20.0,148.32,148.19,45.59]
[1723638695258,0.37647,148.31,148.19,45.59]
[1723638695462,0.25098,148.31,148.19,45.59]
[1723638695656,0.25098,148.31,148.22,45.59]
[1723638695978,45.59,148.4,148.22,45.59]
[1723638696278,45.59,148.43,148.19,45.59]
[1723638696574,20.0,148.58,148.4,45.59]
[1723638696747,20.0,148.58,148.34,45.59]
[1723638696748,45.59,148.55,148.39,45.59]
[1723638697077,1.17267565,148.58,148.43,0.12549]
[1723638697249,45.59,148.61,148.45,45.59]
[1723638697568,45.59,148.56,148.4,45.59]
[1723638697777,45.59,148.53,148.39,0.25098]
[1723638697950,45.59,148.5,148.35,20.0]
[1723638698151,45.59,148.47,148.3,45.59]
[1723638698352,45.59,148.44,148.27,45.59]
[1723638698559,45.59,148.44,148.27,48.28011642]
[1723638699376,6.7332,148.52,148.34,45.59]
[1723638699586,20.0,148.56,148.31,45.59]
[1723638699888,45.59,148.54,148.37,45.59]
[1723638700051,45.59,148.54,148.4,45.59]
[1723638700246,45.59,148.54,148.42,0.12549]
[1723638700460,65.59,148.54,148.37,45.59]
[1723638700678,65.59,148.54,148.38,20.0]
[1723638700679,45.59,148.47,148.38,20.0]
[1723638700967,45.59,148.47,148.34,0.12549]
[1723638701175,45.59,148.47,148.3,45.59]
[1723638701880,45.37647,148.46,148.3,45.59]